[Event "Betsys MČR v online bleskovém šachu 2021"]
[Site "Chess.com"]
[Date "2021.04.17"]
[Round "4"]
[White "Adam20032007"]
[Black "mysacek1414"]
[Result "1-0"]
[WhiteElo "1830"]
[BlackElo "1850"]
[TimeControl "180+1"]
[EndTime "9:37:26 PDT"]
[Termination "Uživatel Adam20032007 zvítězil na čas"]

1. d4 {[%clk 0:02:59.1]} 1... Nf6 {[%clk 0:02:49.5]} 2. Nf3 {[%clk 0:02:58.8]}
2... c5 {[%clk 0:02:48.6]} 3. c3 {[%clk 0:02:58.5]} 3... d5 {[%clk 0:02:45.5]}
4. e3 {[%clk 0:02:57.1]} 4... Nc6 {[%clk 0:02:44.3]} 5. Bd3 {[%clk 0:02:55.4]}
5... Bg4 {[%clk 0:02:42.2]} 6. O-O {[%clk 0:02:45]} 6... e5 {[%clk 0:02:42.1]}
7. dxe5 {[%clk 0:02:42.1]} 7... Nxe5 {[%clk 0:02:41.3]} 8. Be2 {[%clk
0:02:39.9]} 8... Nxf3+ {[%clk 0:02:34.8]} 9. Bxf3 {[%clk 0:02:38.9]} 9... Bxf3
{[%clk 0:02:35.2]} 10. Qxf3 {[%clk 0:02:38.5]} 10... Be7 {[%clk 0:02:35.9]} 11.
Nd2 {[%clk 0:02:35.2]} 11... O-O {[%clk 0:02:33.3]} 12. e4 {[%clk 0:02:35.1]}
12... dxe4 {[%clk 0:02:08.9]} 13. Nxe4 {[%clk 0:02:33.5]} 13... b6 {[%clk
0:02:08.7]} 14. Nxf6+ {[%clk 0:02:30.8]} 14... Bxf6 {[%clk 0:02:08.7]} 15. Bf4
{[%clk 0:02:26.8]} 15... Qd7 {[%clk 0:01:56.6]} 16. Rad1 {[%clk 0:02:26.4]}
16... Qb5 {[%clk 0:01:56.3]} 17. Rd2 {[%clk 0:02:21.1]} 17... Rad8 {[%clk
0:01:54.3]} 18. Rfd1 {[%clk 0:02:20]} 18... Rxd2 {[%clk 0:01:45.6]} 19. Rxd2
{[%clk 0:02:19.5]} 19... h6 {[%clk 0:01:46.1]} 20. Bxh6 {[%clk 0:02:09.9]} 20...
Re8 {[%clk 0:01:37.9]} 21. h3 {[%clk 0:01:38.9]} 21... Qc4 {[%clk 0:00:39.9]}
22. b3 {[%clk 0:00:59.7]} 22... Qxc3 {[%clk 0:00:20]} 23. Bf4 {[%clk 0:00:48.9]}
23... Re1+ {[%clk 0:00:16.3]} 24. Kh2 {[%clk 0:00:47.8]} 24... Qxf3 {[%clk
0:00:15.4]} 25. gxf3 {[%clk 0:00:47.7]} 25... Ra1 {[%clk 0:00:13.9]} 26. Bb8
{[%clk 0:00:42.5]} 26... a6 {[%clk 0:00:11.5]} 27. Ba7 {[%clk 0:00:40.8]} 27...
Bc3 {[%clk 0:00:09.6]} 28. Rd8+ {[%clk 0:00:35.6]} 28... Kh7 {[%clk 0:00:09.1]}
29. Bxb6 {[%clk 0:00:35.9]} 29... Bd4 {[%clk 0:00:07.3]} 30. a4 {[%clk
0:00:31.8]} 30... Rb1 {[%clk 0:00:03.8]} 31. Rc8 {[%clk 0:00:28.2]} 31... Rxb3
{[%clk 0:00:03.7]} 32. Bxc5 {[%clk 0:00:28.3]} 32... Rc3 {[%clk 0:00:03.9]} 33.
Rc6 {[%clk 0:00:23.7]} 33... Rxc5 {[%clk 0:00:03.9]} 34. Rxa6 {[%clk 0:00:23.9]}
34... Bxf2 {[%clk 0:00:03.9]} 35. Kg2 {[%clk 0:00:23.3]} 35... Bd4 {[%clk
0:00:03.6]} 36. Ra8 {[%clk 0:00:21.3]} 36... Kg6 {[%clk 0:00:03.2]} 37. a5
{[%clk 0:00:21.3]} 37... Rc7 {[%clk 0:00:01.7]} 38. a6 {[%clk 0:00:21.1]} 38...
Ra7 {[%clk 0:00:01.9]} 39. Rd8 {[%clk 0:00:15.4]} 39... Bf6 {[%clk 0:00:01.5]}
40. Rd6 {[%clk 0:00:14.4]} 40... Kf5 {[%clk 0:00:02]} 41. Rb6 {[%clk 0:00:14.3]}
1-0

[Event "Betsys MČR v online bleskovém šachu 2021"]
[Site "Chess.com"]
[Date "2021.04.17"]
[Round "4"]
[White "FaceOfLightning"]
[Black "xnepom"]
[Result "1/2-1/2"]
[WhiteElo "1963"]
[BlackElo "2246"]
[TimeControl "180+1"]
[EndTime "9:37:27 PDT"]
[Termination "Remíza dohodou"]

1. d4 {[%clk 0:03:00.9]} 1... d5 {[%clk 0:02:59.5]} 2. Bf4 {[%clk 0:02:59.3]}
2... c5 {[%clk 0:02:56.6]} 3. e3 {[%clk 0:02:58.7]} 3... Nc6 {[%clk 0:02:54.5]}
4. c3 {[%clk 0:02:57.8]} 4... e6 {[%clk 0:02:50.1]} 5. Nf3 {[%clk 0:02:56.9]}
5... Qb6 {[%clk 0:02:49.4]} 6. Qc2 {[%clk 0:02:50]} 6... Nf6 {[%clk 0:02:47.8]}
7. Nbd2 {[%clk 0:02:48.7]} 7... Be7 {[%clk 0:02:45.9]} 8. h3 {[%clk 0:02:46.4]}
8... Bd7 {[%clk 0:02:43.9]} 9. Be2 {[%clk 0:02:42.8]} 9... Rc8 {[%clk
0:02:42.9]} 10. Qb3 {[%clk 0:02:39.9]} 10... c4 {[%clk 0:02:40.6]} 11. Qxb6
{[%clk 0:02:39.2]} 11... axb6 {[%clk 0:02:41.1]} 12. Ne5 {[%clk 0:02:36.3]}
12... Ra8 {[%clk 0:02:31.9]} 13. O-O {[%clk 0:02:33.3]} 13... h6 {[%clk
0:02:17.4]} 14. Nxd7 {[%clk 0:02:20.5]} 14... Kxd7 {[%clk 0:02:15.1]} 15. f3
{[%clk 0:02:19.7]} 15... b5 {[%clk 0:02:11.1]} 16. e4 {[%clk 0:02:18.3]} 16...
Ra6 {[%clk 0:02:02.8]} 17. a3 {[%clk 0:02:16.4]} 17... Rha8 {[%clk 0:01:55]} 18.
Rae1 {[%clk 0:02:14.8]} 18... Nh5 {[%clk 0:01:41.5]} 19. Bh2 {[%clk 0:02:13.9]}
19... Bh4 {[%clk 0:01:41.1]} 20. Rd1 {[%clk 0:02:07.1]} 20... Bg3 {[%clk
0:01:35.3]} 21. f4 {[%clk 0:01:49.9]} 21... Bxh2+ {[%clk 0:01:20.1]} 22. Kxh2
{[%clk 0:01:49.8]} 22... Nf6 {[%clk 0:01:20.7]} 23. Bf3 {[%clk 0:01:47.9]} 23...
b4 {[%clk 0:01:02.6]} 24. axb4 {[%clk 0:01:45.3]} 24... Ra2 {[%clk 0:01:03.1]}
25. Rb1 {[%clk 0:01:43.9]} 25... Na7 {[%clk 0:00:54.7]} 26. exd5 {[%clk
0:01:31.7]} 26... exd5 {[%clk 0:00:54.6]} 27. Rfe1 {[%clk 0:01:31.2]} 27... Nb5
{[%clk 0:00:53.8]} 28. Re5 {[%clk 0:01:08.9]} 28... Nxc3 {[%clk 0:00:39.7]} 29.
bxc3 {[%clk 0:01:07.4]} 29... Rxd2 {[%clk 0:00:40.2]} 30. Bxd5 {[%clk
0:01:05.6]} 30... Nxd5 {[%clk 0:00:34.7]} 31. Rxd5+ {[%clk 0:01:05.3]} 31... Ke6
{[%clk 0:00:35.3]} 32. Re5+ {[%clk 0:01:05]} 32... Kf6 {[%clk 0:00:35.8]} 33.
Rc5 {[%clk 0:00:41.9]} 33... Raa2 {[%clk 0:00:31.5]} 34. Rg1 {[%clk 0:00:41.7]}
34... b6 {[%clk 0:00:26.2]} 35. Rxc4 {[%clk 0:00:41.3]} 35... Kf5 {[%clk
0:00:26.9]} 36. d5 {[%clk 0:00:37.3]} 36... Rxd5 {[%clk 0:00:25]} 37. Rc6 {[%clk
0:00:32.6]} 37... b5 {[%clk 0:00:23.6]} 38. Rc5 {[%clk 0:00:31.6]} 38... Rxc5
{[%clk 0:00:21.1]} 39. bxc5 {[%clk 0:00:31.8]} 39... Rc2 {[%clk 0:00:21.7]} 40.
Rb1 {[%clk 0:00:30.7]} 40... Rxc3 {[%clk 0:00:22.1]} 41. Rxb5 {[%clk 0:00:30.2]}
41... Kxf4 {[%clk 0:00:22.5]} 42. Rb7 {[%clk 0:00:26.3]} 42... Kf5 {[%clk
0:00:15.5]} 43. Rxf7+ {[%clk 0:00:25.4]} 43... Kg6 {[%clk 0:00:16]} 44. Rc7
{[%clk 0:00:24.6]} 44... Rc2 {[%clk 0:00:15.7]} 45. Kg3 {[%clk 0:00:23.7]} 45...
Kf6 {[%clk 0:00:16.3]} 46. Kf3 {[%clk 0:00:22.8]} 46... Rc3+ {[%clk 0:00:16.5]}
47. Kf2 {[%clk 0:00:22.7]} 47... Rc2+ {[%clk 0:00:17]} 48. Kg3 {[%clk
0:00:21.9]} 48... Rc3+ {[%clk 0:00:17.5]} 49. Kf2 {[%clk 0:00:19.7]} 49... Rc2+
{[%clk 0:00:17.9]} 50. Kg3 {[%clk 0:00:19]} 1/2-1/2

[Event "Betsys MČR v online bleskovém šachu 2021"]
[Site "Chess.com"]
[Date "2021.04.17"]
[Round "4"]
[White "svobodan"]
[Black "EliasD123"]
[Result "0-1"]
[WhiteElo "1654"]
[BlackElo "1306"]
[TimeControl "180+1"]
[EndTime "9:37:29 PDT"]
[Termination "Uživatel EliasD123 zvítězil matem"]

1. e4 {[%clk 0:03:00.9]} 1... e5 {[%clk 0:02:58.6]} 2. Nf3 {[%clk 0:03:00.4]}
2... Nc6 {[%clk 0:02:59.1]} 3. Nc3 {[%clk 0:03:00.9]} 3... Nf6 {[%clk 0:02:59]}
4. d4 {[%clk 0:03:01.3]} 4... exd4 {[%clk 0:02:58.5]} 5. Nxd4 {[%clk 0:03:01.9]}
5... Bc5 {[%clk 0:02:58.9]} 6. Be3 {[%clk 0:03:00.6]} 6... Bxd4 {[%clk 0:02:59]}
7. Bxd4 {[%clk 0:03:00.4]} 7... d6 {[%clk 0:02:59.6]} 8. Bc4 {[%clk 0:02:56]}
8... Nxd4 {[%clk 0:02:56.9]} 9. Qxd4 {[%clk 0:02:54.9]} 9... c5 {[%clk
0:02:57.3]} 10. Qd3 {[%clk 0:02:51.2]} 10... Be6 {[%clk 0:02:56.1]} 11. Bxe6
{[%clk 0:02:47.9]} 11... fxe6 {[%clk 0:02:56.6]} 12. O-O-O {[%clk 0:02:48.2]}
12... Qd7 {[%clk 0:02:55]} 13. Qxd6 {[%clk 0:02:47.2]} 13... Qf7 {[%clk
0:02:49]} 14. Qxc5 {[%clk 0:02:40.6]} 14... Nd7 {[%clk 0:02:45.3]} 15. Qd4
{[%clk 0:02:37.7]} 15... Nb6 {[%clk 0:02:39.6]} 16. Nb5 {[%clk 0:02:35.1]} 16...
O-O {[%clk 0:02:38.3]} 17. f3 {[%clk 0:01:58.7]} 17... Qf4+ {[%clk 0:02:32.8]}
18. Kb1 {[%clk 0:01:57]} 18... Rad8 {[%clk 0:02:19.8]} 19. Qc3 {[%clk
0:01:41.2]} 19... Na4 {[%clk 0:02:14.3]} 20. Qb3 {[%clk 0:01:37.9]} 20... Nc5
{[%clk 0:02:12.3]} 21. Qc4 {[%clk 0:01:27.8]} 21... b6 {[%clk 0:02:09.9]} 22.
Nd4 {[%clk 0:01:21.7]} 22... Rfe8 {[%clk 0:01:57.4]} 23. g3 {[%clk 0:01:15.7]}
23... Qf6 {[%clk 0:01:55.8]} 24. Nc6 {[%clk 0:00:57.3]} 24... Rxd1+ {[%clk
0:01:21]} 25. Rxd1 {[%clk 0:00:53.7]} 25... Qxf3 {[%clk 0:01:19.1]} 26. Re1
{[%clk 0:00:41.1]} 26... Rc8 {[%clk 0:01:04.6]} 27. Nd4 {[%clk 0:00:33.5]} 27...
Qf2 {[%clk 0:00:56.8]} 28. Qe2 {[%clk 0:00:27.4]} 28... Qxd4 {[%clk 0:00:55.3]}
29. Qg4 {[%clk 0:00:20.4]} 29... Rd8 {[%clk 0:00:42.7]} 30. a3 {[%clk
0:00:16.4]} 30... e5 {[%clk 0:00:40.1]} 31. Qf5 {[%clk 0:00:07.4]} 31... Na4
{[%clk 0:00:31.2]} 32. c3 {[%clk 0:00:03.5]} 32... Qd3+ {[%clk 0:00:27.5]} 33.
Ka2 {[%clk 0:00:01.9]} 33... Qd2 {[%clk 0:00:22.8]} 34. Qe6+ {[%clk 0:00:02.5]}
34... Kh8 {[%clk 0:00:21.8]} 35. Rb1 {[%clk 0:00:02.7]} 35... Nxc3+ {[%clk
0:00:20]} 36. Ka1 {[%clk 0:00:02.2]} 36... Nxb1 {[%clk 0:00:18.4]} 37. Kxb1
{[%clk 0:00:01.9]} 37... Qd1+ {[%clk 0:00:17.4]} 38. Ka2 {[%clk 0:00:02.3]}
38... Qd7 {[%clk 0:00:15.5]} 39. Qxe5 {[%clk 0:00:02.1]} 39... Qf7+ {[%clk
0:00:14.8]} 40. b3 {[%clk 0:00:01.6]} 40... Rd2+ {[%clk 0:00:13.4]} 41. Ka1
{[%clk 0:00:01.1]} 41... Qf1# {[%clk 0:00:13]} 0-1

[Event "Betsys MČR v online bleskovém šachu 2021"]
[Site "Chess.com"]
[Date "2021.04.17"]
[Round "4"]
[White "chessbeer17"]
[Black "JakubPulpan"]
[Result "0-1"]
[WhiteElo "2344"]
[BlackElo "2719"]
[TimeControl "180+1"]
[EndTime "9:37:30 PDT"]
[Termination "Uživatel JakubPulpan zvítězil po vzdání soupeře"]

1. d4 {[%clk 0:03:00.9]} 1... Nf6 {[%clk 0:02:59.6]} 2. c4 {[%clk 0:03:01.2]}
2... e6 {[%clk 0:03:00]} 3. a3 {[%clk 0:03:01.1]} 3... d5 {[%clk 0:02:39]} 4.
Nc3 {[%clk 0:03:00.4]} 4... c5 {[%clk 0:02:37.1]} 5. e3 {[%clk 0:02:58.8]} 5...
a6 {[%clk 0:02:37.3]} 6. dxc5 {[%clk 0:02:58]} 6... Bxc5 {[%clk 0:02:36.5]} 7.
b4 {[%clk 0:02:58.1]} 7... Ba7 {[%clk 0:02:36]} 8. Bb2 {[%clk 0:02:57.6]} 8...
Nc6 {[%clk 0:02:32.9]} 9. Nf3 {[%clk 0:02:56.8]} 9... d4 {[%clk 0:02:32.1]} 10.
exd4 {[%clk 0:02:54.9]} 10... Nxd4 {[%clk 0:02:33]} 11. Nxd4 {[%clk 0:02:54.8]}
11... Bxd4 {[%clk 0:02:33.9]} 12. Be2 {[%clk 0:02:52.3]} 12... e5 {[%clk
0:02:27.6]} 13. O-O {[%clk 0:02:50.9]} 13... Be6 {[%clk 0:02:25.3]} 14. Qb3
{[%clk 0:02:46.5]} 14... b5 {[%clk 0:02:20.8]} 15. Nd1 {[%clk 0:02:19.2]} 15...
Rc8 {[%clk 0:02:12.4]} 16. Bxd4 {[%clk 0:02:12.6]} 16... Qxd4 {[%clk 0:02:11.5]}
17. Nb2 {[%clk 0:02:12]} 17... bxc4 {[%clk 0:02:11.4]} 18. Qa4+ {[%clk 0:02:12]}
18... Bd7 {[%clk 0:02:11.7]} 19. Qc2 {[%clk 0:02:01.4]} 19... c3 {[%clk
0:01:57.4]} 20. Nd3 {[%clk 0:01:52.8]} 20... Ne4 {[%clk 0:01:43.8]} 21. Rad1
{[%clk 0:01:37.8]} 21... Nd2 {[%clk 0:01:41.8]} 22. Nc5 {[%clk 0:01:27.9]} 22...
O-O {[%clk 0:01:32.8]} 23. Bxa6 {[%clk 0:01:19.2]} 23... Rxc5 {[%clk 0:01:26.6]}
24. bxc5 {[%clk 0:01:16.8]} 24... Ba4 {[%clk 0:01:27.3]} 25. Qd3 {[%clk
0:00:59.8]} 25... Bxd1 {[%clk 0:01:20.3]} 26. Rxd1 {[%clk 0:00:59.8]} 26... Qa4
{[%clk 0:00:58.3]} 27. Rc1 {[%clk 0:00:49.4]} 27... Ne4 {[%clk 0:00:36.4]} 28.
Bb5 {[%clk 0:00:43.7]} 28... Qxa3 {[%clk 0:00:33.4]} 29. Re1 {[%clk 0:00:38.6]}
29... Nxc5 {[%clk 0:00:27.4]} 30. Qd5 {[%clk 0:00:32.7]} 30... c2 {[%clk
0:00:19]} 31. Qc4 {[%clk 0:00:27.6]} 31... Nd3 {[%clk 0:00:16.8]} 32. Qxd3
{[%clk 0:00:24.2]} 32... c1=Q {[%clk 0:00:17.3]} 33. Rxc1 {[%clk 0:00:24.3]}
33... Qxc1+ {[%clk 0:00:18.2]} 34. Qf1 {[%clk 0:00:24.8]} 34... Qxf1+ {[%clk
0:00:18.6]} 35. Bxf1 {[%clk 0:00:24.9]} 35... Rb8 {[%clk 0:00:19.5]} 36. g3
{[%clk 0:00:25.3]} 36... f6 {[%clk 0:00:20.4]} 37. Kg2 {[%clk 0:00:25.8]} 37...
Kf7 {[%clk 0:00:21]} 38. Bc4+ {[%clk 0:00:26.6]} 38... Ke7 {[%clk 0:00:21.4]}
39. h4 {[%clk 0:00:27.2]} 39... f5 {[%clk 0:00:21.1]} 40. Bd3 {[%clk 0:00:27.2]}
40... e4 {[%clk 0:00:20.7]} 41. Bc4 {[%clk 0:00:27.5]} 41... Rb2 {[%clk
0:00:21.3]} 42. Kf1 {[%clk 0:00:27.2]} 42... Kf6 {[%clk 0:00:21.6]} 43. Bg8
{[%clk 0:00:27.3]} 43... h6 {[%clk 0:00:21.5]} 44. Bd5 {[%clk 0:00:25.5]} 44...
g5 {[%clk 0:00:21.3]} 45. hxg5+ {[%clk 0:00:25.4]} 45... hxg5 {[%clk 0:00:22.2]}
46. Bc6 {[%clk 0:00:25.6]} 46... Ke5 {[%clk 0:00:22.4]} 47. Bd7 {[%clk 0:00:23]}
47... f4 {[%clk 0:00:22.6]} 48. gxf4+ {[%clk 0:00:23.3]} 48... Kxf4 {[%clk
0:00:23.1]} 49. Bc6 {[%clk 0:00:22.5]} 49... Kf3 {[%clk 0:00:22.9]} 50. Ke1
{[%clk 0:00:18.9]} 50... Re2+ {[%clk 0:00:21.9]} 0-1

[Event "Betsys MČR v online bleskovém šachu 2021"]
[Site "Chess.com"]
[Date "2021.04.17"]
[Round "4"]
[White "veronikam"]
[Black "SajdlJosef"]
[Result "0-1"]
[WhiteElo "1497"]
[BlackElo "1864"]
[TimeControl "180+1"]
[EndTime "9:37:30 PDT"]
[Termination "Uživatel SajdlJosef zvítězil na čas"]

1. e4 {[%clk 0:02:59.8]} 1... c6 {[%clk 0:02:57.9]} 2. d4 {[%clk 0:02:58.1]}
2... d5 {[%clk 0:02:57.2]} 3. e5 {[%clk 0:02:57.5]} 3... g6 {[%clk 0:02:55.8]}
4. Nf3 {[%clk 0:02:57.2]} 4... h5 {[%clk 0:02:55.3]} 5. Nc3 {[%clk 0:02:52]}
5... Nh6 {[%clk 0:02:54.8]} 6. Bd3 {[%clk 0:02:42.7]} 6... Bf5 {[%clk
0:02:53.9]} 7. Be3 {[%clk 0:02:35.9]} 7... e6 {[%clk 0:02:52]} 8. Be2 {[%clk
0:02:30.2]} 8... b5 {[%clk 0:02:43]} 9. Bg5 {[%clk 0:02:27]} 9... Qb6 {[%clk
0:02:35.7]} 10. Bf6 {[%clk 0:02:22.3]} 10... Rg8 {[%clk 0:02:33.4]} 11. Nh4
{[%clk 0:02:18.3]} 11... Nd7 {[%clk 0:02:28.7]} 12. Bg5 {[%clk 0:02:10.4]} 12...
a5 {[%clk 0:02:18.1]} 13. Qd2 {[%clk 0:02:07.9]} 13... Rh8 {[%clk 0:02:14.5]}
14. O-O {[%clk 0:01:59.7]} 14... a4 {[%clk 0:02:03.7]} 15. b3 {[%clk 0:01:50.5]}
15... a3 {[%clk 0:01:57.8]} 16. Rac1 {[%clk 0:01:40.6]} 16... Ng8 {[%clk
0:01:31.7]} 17. Nxf5 {[%clk 0:01:36.4]} 17... gxf5 {[%clk 0:01:27.3]} 18. Nd1
{[%clk 0:01:25.9]} 18... Be7 {[%clk 0:01:16.9]} 19. Be3 {[%clk 0:01:12.4]} 19...
h4 {[%clk 0:01:08.9]} 20. c4 {[%clk 0:01:10.7]} 20... bxc4 {[%clk 0:01:03.9]}
21. bxc4 {[%clk 0:01:09]} 21... Bb4 {[%clk 0:01:01.1]} 22. Qc2 {[%clk
0:01:02.9]} 22... Ne7 {[%clk 0:00:49.4]} 23. Rb1 {[%clk 0:00:47.8]} 23... Qa5
{[%clk 0:00:33.7]} 24. c5 {[%clk 0:00:42.2]} 24... Ng6 {[%clk 0:00:23.3]} 25.
Qb3 {[%clk 0:00:27.5]} 25... Rb8 {[%clk 0:00:19.6]} 26. Bd2 {[%clk 0:00:20]}
26... Bxd2 {[%clk 0:00:17.2]} 27. Qxb8+ {[%clk 0:00:19.7]} 27... Nxb8 {[%clk
0:00:16]} 28. Rxb8+ {[%clk 0:00:18.9]} 28... Kd7 {[%clk 0:00:14.3]} 29. Rxh8
{[%clk 0:00:18.5]} 29... Nxh8 {[%clk 0:00:13.3]} 30. Bh5 {[%clk 0:00:17.7]}
30... Bc3 {[%clk 0:00:10.9]} 31. Nxc3 {[%clk 0:00:17.3]} 31... Qxc3 {[%clk
0:00:09.5]} 32. Rd1 {[%clk 0:00:17]} 32... Qc2 {[%clk 0:00:08.5]} 33. Kf1 {[%clk
0:00:12.8]} 33... Qxa2 {[%clk 0:00:06.7]} 34. f4 {[%clk 0:00:10.5]} 34... Qb2
{[%clk 0:00:05.7]} 35. Be2 {[%clk 0:00:09.5]} 35... a2 {[%clk 0:00:05.3]} 36.
Bd3 {[%clk 0:00:03.2]} 36... a1=Q {[%clk 0:00:03.9]} 0-1

[Event "Betsys MČR v online bleskovém šachu 2021"]
[Site "Chess.com"]
[Date "2021.04.17"]
[Round "4"]
[White "MrNikdo"]
[Black "hoacin"]
[Result "0-1"]
[WhiteElo "2036"]
[BlackElo "2495"]
[TimeControl "180+1"]
[EndTime "9:37:31 PDT"]
[Termination "Uživatel hoacin zvítězil po vzdání soupeře"]

1. e4 {[%clk 0:02:58.7]} 1... c5 {[%clk 0:02:59]} 2. Nf3 {[%clk 0:02:57.3]} 2...
d6 {[%clk 0:02:59]} 3. d4 {[%clk 0:02:57.7]} 3... cxd4 {[%clk 0:02:58.7]} 4.
Nxd4 {[%clk 0:02:58.5]} 4... Nf6 {[%clk 0:02:58.9]} 5. Nc3 {[%clk 0:02:59]} 5...
a6 {[%clk 0:02:59]} 6. Bg5 {[%clk 0:02:59.5]} 6... e6 {[%clk 0:02:58.9]} 7. f4
{[%clk 0:03:00.1]} 7... Qb6 {[%clk 0:02:58.5]} 8. Nb3 {[%clk 0:02:59]} 8... Nc6
{[%clk 0:02:55.2]} 9. Qf3 {[%clk 0:02:54.8]} 9... Be7 {[%clk 0:02:54.1]} 10.
O-O-O {[%clk 0:02:54.2]} 10... Qc7 {[%clk 0:02:53.8]} 11. Kb1 {[%clk 0:02:51.8]}
11... Bd7 {[%clk 0:02:29.2]} 12. g4 {[%clk 0:02:35.1]} 12... h6 {[%clk
0:02:24.5]} 13. Bh4 {[%clk 0:02:34.6]} 13... g5 {[%clk 0:02:24.2]} 14. Bg3
{[%clk 0:02:33.7]} 14... gxf4 {[%clk 0:02:17.6]} 15. Bxf4 {[%clk 0:02:33.8]}
15... Ne5 {[%clk 0:02:17.3]} 16. Bxe5 {[%clk 0:02:22.5]} 16... dxe5 {[%clk
0:02:17.1]} 17. h4 {[%clk 0:02:13.2]} 17... h5 {[%clk 0:02:16.6]} 18. g5 {[%clk
0:02:09.6]} 18... Ng4 {[%clk 0:02:16.4]} 19. Bh3 {[%clk 0:02:05.3]} 19... b5
{[%clk 0:02:15.8]} 20. Rhf1 {[%clk 0:01:59.2]} 20... O-O-O {[%clk 0:02:13.7]}
21. Bxg4 {[%clk 0:01:55.5]} 21... hxg4 {[%clk 0:02:13]} 22. Qxg4 {[%clk
0:01:54.8]} 22... Rh7 {[%clk 0:01:55.3]} 23. h5 {[%clk 0:01:48.7]} 23... Rg8
{[%clk 0:01:49.5]} 24. g6 {[%clk 0:01:48.4]} 24... fxg6 {[%clk 0:01:48.8]} 25.
hxg6 {[%clk 0:01:48.5]} 25... Rhg7 {[%clk 0:01:48.9]} 26. Rg1 {[%clk 0:01:17.9]}
26... Bb4 {[%clk 0:01:40.7]} 27. Rd3 {[%clk 0:01:02.1]} 27... a5 {[%clk
0:01:39.2]} 28. a3 {[%clk 0:01:01]} 28... a4 {[%clk 0:01:35.7]} 29. axb4 {[%clk
0:00:43.2]} 29... axb3 {[%clk 0:01:35.2]} 30. cxb3 {[%clk 0:00:41.2]} 30... Qb6
{[%clk 0:01:33.3]} 31. Rgd1 {[%clk 0:00:25.2]} 31... Rxg6 {[%clk 0:01:31.5]} 32.
Qh5 {[%clk 0:00:20.6]} 32... Bc6 {[%clk 0:01:29.3]} 33. Qxe5 {[%clk 0:00:18.5]}
33... Qc7 {[%clk 0:01:19.4]} 34. Rd6 {[%clk 0:00:18.6]} 34... Bd7 {[%clk
0:01:13.1]} 35. Rc1 {[%clk 0:00:16]} 35... Rg1 {[%clk 0:01:09.8]} 36. Qd4 {[%clk
0:00:10.8]} 36... Rxc1+ {[%clk 0:01:08.2]} 37. Kxc1 {[%clk 0:00:11.7]} 37... e5
{[%clk 0:01:06.9]} 38. Qd5 {[%clk 0:00:11.2]} 38... Rg1+ {[%clk 0:01:05.3]} 39.
Kc2 {[%clk 0:00:09.9]} 39... Qa7 {[%clk 0:01:00.6]} 40. Qc5+ {[%clk 0:00:08.6]}
40... Qxc5 {[%clk 0:01:00]} 41. bxc5 {[%clk 0:00:09.2]} 41... b4 {[%clk
0:01:00]} 42. Nd5 {[%clk 0:00:08.7]} 42... Bb5 {[%clk 0:00:59]} 43. Nb6+ {[%clk
0:00:08.4]} 43... Kb7 {[%clk 0:00:58.3]} 44. Rd5 {[%clk 0:00:07.4]} 44... Rg2+
{[%clk 0:00:57.8]} 45. Rd2 {[%clk 0:00:07.6]} 45... Rg4 {[%clk 0:00:56.6]} 46.
Rd7+ {[%clk 0:00:07.5]} 46... Bxd7 {[%clk 0:00:54.6]} 47. Nxd7 {[%clk
0:00:08.2]} 47... Rxe4 {[%clk 0:00:54.7]} 48. Nf6 {[%clk 0:00:08]} 48... Re2+
{[%clk 0:00:53.8]} 49. Kd3 {[%clk 0:00:07.7]} 49... Rxb2 {[%clk 0:00:53.4]} 50.
Kc4 {[%clk 0:00:08.4]} 50... Rf2 {[%clk 0:00:52.8]} 51. Nd5 {[%clk 0:00:09]}
51... Rf3 {[%clk 0:00:49.4]} 52. Nxb4 {[%clk 0:00:09.8]} 52... e4 {[%clk
0:00:49.2]} 53. Nc2 {[%clk 0:00:08.6]} 53... e3 {[%clk 0:00:47.8]} 54. Nd4
{[%clk 0:00:08.4]} 54... Rf4 {[%clk 0:00:45.8]} 55. Kd3 {[%clk 0:00:08.9]} 55...
Rxd4+ {[%clk 0:00:45.6]} 0-1

[Event "Betsys MČR v online bleskovém šachu 2021"]
[Site "Chess.com"]
[Date "2021.04.17"]
[Round "4"]
[White "Eliska0107"]
[Black "FutureFideMasseur"]
[Result "0-1"]
[WhiteElo "2019"]
[BlackElo "2434"]
[TimeControl "180+1"]
[EndTime "9:37:31 PDT"]
[Termination "Uživatel FutureFideMasseur zvítězil na čas"]

1. e4 {[%clk 0:03:00.9]} 1... e5 {[%clk 0:02:59.4]} 2. Nf3 {[%clk 0:03:00.1]}
2... Nc6 {[%clk 0:02:59.5]} 3. Bc4 {[%clk 0:03:00]} 3... Nf6 {[%clk 0:02:59.3]}
4. d3 {[%clk 0:02:59.4]} 4... Be7 {[%clk 0:02:56.2]} 5. h3 {[%clk 0:02:57.9]}
5... O-O {[%clk 0:02:56.2]} 6. O-O {[%clk 0:02:58]} 6... d6 {[%clk 0:02:53.9]}
7. Bb3 {[%clk 0:02:57.5]} 7... Na5 {[%clk 0:02:43.6]} 8. Ba4 {[%clk 0:02:57]}
8... Bd7 {[%clk 0:02:43.4]} 9. Bxd7 {[%clk 0:02:56.1]} 9... Qxd7 {[%clk
0:02:43.6]} 10. c3 {[%clk 0:02:56.1]} 10... Nc6 {[%clk 0:02:42.5]} 11. b4 {[%clk
0:02:54.3]} 11... a6 {[%clk 0:02:41.9]} 12. a4 {[%clk 0:02:53.7]} 12... Rfe8
{[%clk 0:02:34.5]} 13. Bb2 {[%clk 0:02:52.6]} 13... Bf8 {[%clk 0:02:33.8]} 14.
Nbd2 {[%clk 0:02:52.4]} 14... Ne7 {[%clk 0:02:33]} 15. d4 {[%clk 0:02:40.5]}
15... Ng6 {[%clk 0:02:30.4]} 16. dxe5 {[%clk 0:02:40.4]} 16... dxe5 {[%clk
0:02:27.7]} 17. Qc2 {[%clk 0:02:28.6]} 17... Nf4 {[%clk 0:02:17.5]} 18. Kh2
{[%clk 0:02:19.1]} 18... Rad8 {[%clk 0:02:12.8]} 19. Nc4 {[%clk 0:02:15.5]}
19... Qe6 {[%clk 0:01:49]} 20. Ne3 {[%clk 0:01:56.2]} 20... Qc6 {[%clk
0:01:41.4]} 21. Rad1 {[%clk 0:01:27.2]} 21... Rxd1 {[%clk 0:01:16.9]} 22. Rxd1
{[%clk 0:01:26.3]} 22... Qxe4 {[%clk 0:01:16.5]} 23. Qxe4 {[%clk 0:01:14.5]}
23... Nxe4 {[%clk 0:01:17.4]} 24. Kg1 {[%clk 0:01:14.6]} 24... Nf6 {[%clk
0:01:12]} 25. h4 {[%clk 0:01:09.4]} 25... e4 {[%clk 0:01:08.3]} 26. Nd4 {[%clk
0:01:05.5]} 26... Nd3 {[%clk 0:01:07.4]} 27. Ba1 {[%clk 0:01:00.7]} 27... c5
{[%clk 0:01:05.9]} 28. Ndc2 {[%clk 0:00:56.7]} 28... Rc8 {[%clk 0:00:52.8]} 29.
b5 {[%clk 0:00:54.2]} 29... axb5 {[%clk 0:00:51.8]} 30. axb5 {[%clk 0:00:53.6]}
30... Ra8 {[%clk 0:00:50.9]} 31. f3 {[%clk 0:00:52]} 31... Nf4 {[%clk
0:00:41.8]} 32. c4 {[%clk 0:00:44.6]} 32... exf3 {[%clk 0:00:39.5]} 33. gxf3
{[%clk 0:00:44.7]} 33... N6h5 {[%clk 0:00:36.8]} 34. Kf2 {[%clk 0:00:39]} 34...
Be7 {[%clk 0:00:36.2]} 35. Nf5 {[%clk 0:00:38.5]} 35... Bf6 {[%clk 0:00:34.9]}
36. Bxf6 {[%clk 0:00:36.9]} 36... Nxf6 {[%clk 0:00:35.8]} 37. Nce3 {[%clk
0:00:30.8]} 37... g6 {[%clk 0:00:32.3]} 38. Nd6 {[%clk 0:00:27.3]} 38... Ra2+
{[%clk 0:00:31.5]} 39. Kg3 {[%clk 0:00:23.4]} 39... N6h5+ {[%clk 0:00:27.9]} 40.
Kg4 {[%clk 0:00:23.4]} 40... Re2 {[%clk 0:00:17.5]} 41. Ndf5 {[%clk 0:00:16.9]}
41... gxf5+ {[%clk 0:00:15.6]} 42. Nxf5 {[%clk 0:00:16.8]} 42... Rg2+ {[%clk
0:00:14.6]} 0-1